bitfinex-derivatives/quotes_BNBF0:USTF0_20241231
["timestamp","ask_amount","ask_price","bid_price","bid_amount"]
[1735673544296,0.26106976,705.23,703.89,0.2841353]
[1735673544493,0.26106976,705.22,703.89,0.2841353]
[1735673544693,0.26106976,705.21,703.89,0.2841353]
[1735673544895,0.26106976,705.2,703.89,0.2841353]
[1735673545097,0.28358738,705.25,703.89,0.2841353]
[1735673545299,0.26106366,705.24,703.89,0.2841353]
[1735673545601,1.48200198,705.24,703.89,0.2841353]
[1735673547302,0.2610102,705.23,703.89,0.2841353]
[1735673549700,0.2610055,705.22,703.89,1.3475273]
[1735673549901,0.2610055,705.21,703.89,1.3475273]
[1735673550104,0.2610055,705.2,703.89,1.3475273]
[1735673550304,0.2610055,705.19,703.89,1.3475273]
[1735673550503,0.2610055,705.18,703.89,1.3475273]
[1735673550704,0.2610055,705.17,703.89,0.2841353]
[1735673550997,0.2610055,705.16,703.89,0.2841353]
[1735673551203,1.48200198,705.24,703.89,0.2841353]
[1735673551404,0.26100412,705.23,703.89,0.2841353]
[1735673551597,1.48200198,705.24,703.89,0.2841353]
[1735673551802,1.48200198,705.24,703.89,1.3475273]
[1735673553001,1.48200198,705.24,703.89,0.2841353]
[1735673553906,0.26102326,705.23,703.89,0.2841353]
[1735673555010,1.06274161,705.17,703.89,0.2841353]
[1735673555311,0.26105847,705.16,703.89,0.2841353]
[1735673555609,1.06274161,705.17,703.89,0.2841353]
[1735673555806,1.48192835,705.15,703.89,0.2841353]
[1735673556003,0.26105628,705.14,703.89,0.2841353]
[1735673556407,1.32379789,705.14,703.89,0.2841353]
[1735673556606,0.26105628,705.13,703.89,0.2841353]
[1735673557317,1.32379789,705.13,703.89,0.2841353]
[1735673557510,0.26105628,705.12,703.89,0.2841353]
[1735673559613,0.26105628,705.11,703.89,0.2841353]
[1735673559810,0.26105628,705.1,703.89,0.2841353]
[1735673560015,0.26105628,705.09,703.89,0.2841353]
[1735673560214,0.26105628,705.08,703.89,0.2841353]
[1735673560414,0.26104715,705.07,703.89,0.2841353]
[1735673560617,0.26104715,705.06,703.89,0.2841353]
[1735673560813,0.26104715,705.05,703.89,0.2841353]
[1735673561116,0.26104715,705.04,703.89,0.2841353]
[1735673561317,0.26104715,705.03,703.89,0.2841353]
[1735673561514,0.26104715,705.02,703.89,0.2841353]
[1735673561718,0.26104715,705.01,703.89,0.2841353]
[1735673561916,1.06274161,705.12,703.89,0.2841353]
[1735673562114,0.2610502,705.11,703.89,0.2841353]
[1735673563017,0.26103119,705.1,703.89,0.2841353]
[1735673563218,0.26103119,705.09,703.89,0.2841353]
[1735673563515,1.06274161,705.14,703.89,0.2841353]
[1735673563716,0.26102294,705.13,703.89,0.2841353]
[1735673564113,0.26102294,705.13,703.89,1.3475273]
[1735673564317,0.26102294,705.12,703.89,1.3475273]
[1735673564616,0.26102294,705.11,703.89,1.3475273]
[1735673564819,0.26102294,705.1,703.89,1.3475273]
[1735673565117,0.26102294,705.09,703.89,1.3475273]
[1735673565318,0.26102294,705.08,703.89,0.2841353]
[1735673565617,0.26102294,705.07,703.89,0.2841353]
[1735673565818,0.2610435,705.06,703.89,0.2841353]
[1735673566018,0.2610435,705.05,703.89,0.2841353]
[1735673566314,0.2610435,705.04,703.89,0.2841353]
[1735673566519,0.2610435,705.03,703.89,0.2841353]
[1735673566719,0.2610435,705.02,703.89,0.2841353]
[1735673566917,1.48189154,705.07,703.89,0.2841353]
[1735673567118,0.26104378,705.06,703.89,0.2841353]
[1735673567621,1.06274161,705.14,703.89,0.2841353]
[1735673567820,0.26102266,705.13,703.89,0.2841353]
[1735673568319,0.26102087,705.12,703.89,0.2841353]
[1735673568523,0.26102087,705.11,703.94,1.063392]
[1735673568715,0.26102087,705.1,703.95,0.28411108]
[1735673568916,0.26102087,705.09,703.95,0.28411108]
[1735673569116,1.4818337,705.17,703.95,0.28411108]
[1735673569420,0.26102183,705.16,703.95,0.28411108]
[1735673570519,1.06274161,705.15,703.95,0.28411108]
[1735673570721,0.26102183,705.14,703.95,0.28411108]
[1735673571019,0.26103481,705.13,703.95,0.28411108]
[1735673571219,0.26103481,705.12,703.95,0.28411108]
[1735673571420,0.26103481,705.11,703.95,0.28411108]
[1735673571613,1.06274161,705.14,703.95,0.28411108]
[1735673571813,0.26103464,705.13,703.95,0.28411108]
[1735673573123,0.26103464,705.12,703.95,0.28411108]
[1735673573422,1.4818337,705.17,703.95,0.28411108]
[1735673573622,0.2610354,705.16,703.95,0.28411108]
[1735673575924,0.26102815,705.15,703.95,0.28411108]
[1735673576114,0.26102815,705.14,703.95,0.28411108]
[1735673576320,1.4818337,705.17,703.95,0.28411108]
[1735673576515,0.26102932,705.16,703.95,0.28411108]
[1735673576724,1.4818337,705.17,703.95,0.28411108]
[1735673576725,2.54457531,705.17,703.95,0.28411108]
[1735673577023,0.26102876,705.16,703.95,0.28411108]
[1735673577217,2.54457531,705.17,703.95,0.28411108]
[1735673578024,0.28358738,705.25,703.95,0.28411108]
[1735673578025,1.06274161,705.2,703.95,0.28411108]
[1735673578222,0.26101564,705.19,703.95,0.28411108]
[1735673578925,1.06274161,705.21,703.95,0.28411108]
[1735673579117,0.26101592,705.2,703.95,0.28411108]
[1735673579724,1.32375753,705.2,703.95,0.28411108]
[1735673579925,0.26101592,705.19,703.95,0.28411108]
[1735673580425,1.06274161,705.2,703.95,0.28411108]
[1735673580826,0.26101228,705.19,703.95,0.28411108]
[1735673581227,0.26101228,705.2,703.95,0.28411108]
[1735673581426,0.26101228,705.19,703.95,0.28411108]
[1735673581626,1.06274161,705.21,703.95,0.28411108]
[1735673582232,1.06274161,705.14,704.01,1.063392]
[1735673582530,1.06274161,705.14,704.02,0.28408283]
[1735673583431,1.48174431,705.22,704.02,0.28408283]
[1735673591929,0.26103471,705.21,704.02,0.28408283]
[1735673592826,1.06274161,705.13,704.02,0.28408283]
[1735673593027,0.26103471,705.12,704.02,0.28408283]
[1735673593934,1.06274161,705.12,704.02,0.28408283]
[1735673595031,0.28358738,705.25,704.02,0.28408283]
[1735673595032,1.06274161,705.16,704.02,0.28408283]
[1735673595228,1.48188628,705.11,704.02,0.28408283]
[1735673595935,0.26104134,705.1,704.02,0.28408283]
[1735673596732,2.54462789,705.11,704.02,0.28408283]
[1735673597733,1.48188628,705.11,704.02,0.28408283]
[1735673602038,0.26108035,705.1,704.02,0.28408283]
[1735673602632,1.48188628,705.11,704.02,0.28408283]
[1735673602935,0.26109383,705.1,704.02,0.28408283]
[1735673603231,1.06274161,705.07,704.02,0.28408283]
[1735673603435,0.26109383,705.06,704.02,0.28408283]
[1735673603830,1.06274161,705.07,704.02,0.28408283]
[1735673604333,0.26108682,705.06,704.02,0.28408283]
[1735673604935,0.26108682,705.05,704.02,0.28408283]
[1735673605235,0.26108682,705.04,704.02,0.28408283]
[1735673605435,0.26108682,705.03,704.02,0.28408283]
[1735673605633,0.26108682,705.02,704.02,0.28408283]
[1735673605936,0.26108682,705.01,704.02,0.28408283]
[1735673606737,0.26110549,705.0,704.02,0.28408283]
[1735673606933,0.26110549,704.99,704.02,0.28408283]
[1735673607138,1.48224395,705.02,704.02,0.28408283]
[1735673607338,0.26111113,705.01,704.02,0.28408283]
[1735673607743,1.48224395,705.02,703.62,1.063392]
[1735673607940,1.06274161,705.0,703.63,1.34763229]
[1735673608239,0.26114756,704.99,703.63,1.34763229]
[1735673608938,0.26114756,704.99,703.63,0.28424029]
[1735673609139,0.26114756,704.98,703.63,0.28424029]
[1735673609341,0.26114756,704.97,703.63,0.28424029]
[1735673609539,0.26114756,704.96,703.63,0.28424029]
[1735673609738,1.48224395,705.02,703.63,0.28424029]
[1735673609939,0.26116018,705.01,703.63,0.28424029]
[1735673610537,0.26116643,705.0,703.63,0.28424029]
[1735673610736,0.26116643,704.99,703.63,0.28424029]
[1735673610941,0.26116643,704.98,703.63,0.28424029]
[1735673611239,0.26116643,704.97,703.63,0.28424029]
[1735673611439,0.26116643,704.96,703.63,0.28424029]
[1735673611635,1.48224395,705.02,703.63,0.28424029]
[1735673611636,0.26116643,704.95,703.63,0.28424029]
[1735673611840,0.26116643,704.94,703.63,0.28424029]
[1735673612040,0.26116643,704.93,703.63,0.28424029]
[1735673612237,0.26116643,704.92,703.63,0.28424029]
[1735673612436,1.48224395,705.02,703.63,0.28424029]
[1735673612642,0.26116916,705.01,703.63,0.28424029]
[1735673615244,0.26116164,705.0,703.63,0.28424029]
[1735673615543,0.26116164,704.99,703.63,0.28424029]
[1735673615739,0.26116164,704.98,703.63,0.28424029]
[1735673615937,0.26116164,704.97,703.63,0.28424029]
[1735673616140,0.26116164,704.96,703.63,0.28424029]
[1735673616341,0.26116164,704.95,703.63,0.28424029]
[1735673616536,0.26116164,704.94,703.63,0.28424029]
[1735673616742,0.26116164,704.93,703.63,0.28424029]
[1735673616937,0.26116164,704.92,703.63,0.28424029]
[1735673620445,0.54494234,704.91,703.63,0.28424029]
[1735673620642,0.26121818,704.9,703.63,0.28424029]
[1735673622941,0.28373221,704.89,703.63,0.28424029]
[1735673623147,0.26122216,704.88,703.63,0.28424029]
[1735673623346,0.28374026,704.87,703.63,0.28424029]
[1735673623548,0.26122216,704.86,703.63,0.28424029]
[1735673623744,0.28374831,704.85,703.63,0.28424029]
[1735673623948,0.26121953,704.84,703.63,0.28424029]
[1735673625648,0.28374831,704.85,703.63,0.28424029]
[1735673625848,0.26119814,704.84,703.63,0.28424029]
[1735673626449,0.26119863,704.83,703.63,0.28424029]
[1735673626649,0.26119863,704.82,703.63,0.28424029]
[1735673626849,0.28374831,704.85,703.63,0.28424029]
[1735673626850,0.26119863,704.81,703.63,0.28424029]
[1735673627050,0.26119863,704.8,703.63,0.28424029]
[1735673627252,0.26119863,704.79,703.63,0.28424029]
[1735673628452,0.26122762,704.78,703.63,0.28424029]
[1735673628643,0.26122762,704.77,703.63,0.28424029]
[1735673628848,0.26122762,704.76,703.63,0.28424029]
[1735673629044,0.26122762,704.75,703.63,0.28424029]
[1735673629249,0.26122762,704.74,703.63,0.28424029]
[1735673629447,0.26122762,704.73,703.63,0.28424029]
[1735673629650,0.26122762,704.72,703.63,0.28424029]
[1735673629851,0.26122762,704.71,703.63,0.28424029]
[1735673630048,0.26122762,704.7,703.63,0.28424029]
[1735673630244,0.26122762,704.69,703.63,0.28424029]
[1735673630446,0.26122762,704.68,703.63,0.28424029]
[1735673630751,1.48288609,704.8,703.63,0.28424029]
[1735673631252,0.26122092,704.79,703.63,0.28424029]
[1735673633551,1.48288609,704.8,703.63,0.28424029]
[1735673633750,0.26120532,704.79,703.63,0.28424029]
[1735673636349,1.48288609,704.8,703.63,0.28424029]
[1735673636547,0.26120337,704.79,703.63,0.28424029]
[1735673639058,0.26120436,704.78,703.63,0.28424029]
[1735673639356,0.26120436,704.77,703.63,0.28424029]
[1735673639556,0.26120436,704.76,703.63,0.28424029]
[1735673639856,0.26120436,704.75,703.63,0.28424029]
[1735673640052,0.26120436,704.74,703.63,0.28424029]
[1735673640251,0.26120436,704.73,703.63,0.28424029]
[1735673640450,0.26120436,704.72,703.63,0.28424029]
[1735673640656,0.26120436,704.71,703.63,0.28424029]
[1735673640858,0.26120436,704.7,703.63,0.28424029]
[1735673641057,0.26120804,704.69,703.63,0.28424029]
[1735673641259,1.48287029,704.71,703.63,0.28424029]
[1735673641560,0.2612053,704.7,703.63,0.28424029]
[1735673643555,1.48287029,704.71,703.63,0.28424029]
[1735673643556,0.26120189,704.69,703.63,0.28424029]
[1735673643761,0.26120189,704.68,703.63,0.28424029]
[1735673643962,0.26120189,704.67,703.63,0.28424029]
[1735673644161,0.26120189,704.66,703.63,0.28424029]
[1735673644361,1.48287029,704.71,703.63,0.28424029]
[1735673644562,0.26120354,704.7,703.63,0.28424029]
[1735673646259,0.26120571,704.69,703.63,0.28424029]
[1735673646559,1.06274161,704.69,703.63,0.28424029]
[1735673647464,1.48287029,704.71,703.63,0.28424029]
[1735673650263,0.26123528,704.7,703.63,0.28424029]
[1735673650863,1.06274161,704.64,703.63,0.28424029]
[1735673651469,1.48300194,704.63,703.63,0.28424029]
[1735673652068,2.54574355,704.63,703.63,0.28424029]
[1735673653371,1.48300194,704.63,703.63,0.28424029]
[1735673654370,2.54574355,704.63,703.63,0.28424029]
[1735673656971,1.48300194,704.63,703.63,0.28424029]
[1735673661971,0.26127373,704.62,703.63,0.28424029]
[1735673662176,1.48300194,704.63,703.63,0.28424029]
[1735673662377,0.26130967,704.62,703.63,0.28424029]
[1735673662577,0.26130967,704.62,703.12,1.063392]
[1735673663176,0.28384496,704.61,703.12,1.063392]
[1735673663373,0.26130967,704.6,703.12,1.063392]
[1735673663576,1.06274161,704.55,702.91,1.063392]
[1735673663775,0.26130967,704.54,702.93,0.28452335]
[1735673664177,1.48352878,704.53,702.93,0.28452335]
[1735673664376,0.26130967,704.52,702.93,0.28452335]
[1735673664678,1.48352878,704.53,702.93,0.28452335]
[1735673672991,0.26129381,704.52,702.93,0.28452335]
[1735673673592,0.26129451,704.51,702.93,0.28452335]
[1735673673795,0.26129451,704.5,702.96,1.063392]
[1735673674093,0.26129451,704.49,702.98,0.28450311]
[1735673674291,1.48352878,704.53,702.98,0.28450311]
[1735673674593,0.26129384,704.52,702.98,0.28450311]
[1735673675587,0.26128664,704.51,702.98,0.28450311]
[1735673675788,0.26128426,704.5,702.98,1.34789511]
[1735673675993,1.48352878,704.53,702.98,1.34789511]
[1735673676194,0.26128976,704.52,702.98,1.34789511]
[1735673676594,0.26128976,704.52,702.99,1.063392]
[1735673676894,0.26128976,704.52,703.01,0.28449097]
[1735673677492,1.48352878,704.53,703.01,0.28449097]
[1735673677693,0.26128612,704.52,703.01,0.28449097]
[1735673678394,1.48352878,704.53,703.01,0.28449097]
[1735673678596,0.26128377,704.52,703.01,0.28449097]
[1735673679290,1.48352878,704.53,703.01,0.28449097]
[1735673680197,0.26128773,704.52,703.01,0.28449097]
[1735673680793,1.48352878,704.53,703.01,0.28449097]
[1735673681295,0.26128581,704.52,703.01,0.28449097]
[1735673682398,0.26128581,704.52,703.1,1.063392]
[1735673682594,0.26128581,704.52,703.11,0.28445051]
[1735673683500,1.48352878,704.53,703.11,0.28445051]
[1735673683692,0.26128997,704.52,703.12,1.063392]
[1735673683898,0.26128997,704.52,703.13,0.28444242]
[1735673685601,1.32403158,704.52,703.13,1.34783442]
[1735673685900,0.26128997,704.51,703.13,1.34783442]
[1735673686299,0.26128316,704.5,703.13,1.34783442]
[1735673686499,0.26128316,704.49,703.13,1.34783442]
[1735673686800,0.26128316,704.48,703.18,1.063392]
[1735673686994,0.26128316,704.47,703.19,0.28441815]
[1735673687194,1.06274161,704.52,703.19,0.28441815]
[1735673687195,0.26128316,704.46,703.19,0.28441815]
[1735673687398,0.26128316,704.45,703.19,0.28441815]
[1735673687600,0.26128316,704.44,703.23,1.063392]
[1735673687900,1.06274161,704.51,703.24,0.28439792]
[1735673688100,0.26127728,704.5,703.24,0.28439792]
[1735673689001,1.06274161,704.49,703.24,1.34778992]
[1735673689195,0.26127728,704.48,703.24,1.34778992]
[1735673690202,1.32401889,704.48,703.29,1.063392]
[1735673690405,0.26127728,704.47,703.29,1.063392]
[1735673691505,1.06274161,704.48,703.3,0.28437366]
[1735673691705,1.06274161,704.47,703.31,1.063392]
[1735673692806,1.06274161,704.47,703.32,0.28436558]
[1735673693208,1.48352878,704.53,703.32,1.34775758]
[1735673695407,1.48352878,704.53,703.32,0.28436558]
[1735673699706,0.28384496,704.61,703.32,0.28436558]
[1735673703014,0.28384496,704.61,703.37,1.063392]
[1735673703213,0.28384496,704.61,703.38,0.28434132]
[1735673704012,0.26121412,704.6,703.38,0.28434132]
[1735673704818,0.26121783,704.59,703.38,0.28434132]
[1735673705017,0.26121783,704.58,703.41,1.063392]
[1735673705217,0.28384496,704.61,703.41,1.063392]
[1735673705518,0.28384496,704.61,703.42,0.28432515]
[1735673708917,1.48279131,704.74,703.42,0.28432515]
[1735673709315,1.06274161,704.85,703.42,0.28432515]
[1735673709516,0.26114556,704.84,703.42,0.28432515]
[1735673709716,1.74379999,704.84,703.42,0.28432515]
[1735673709917,0.26114556,704.83,703.42,0.28432515]
[1735673710418,1.48265443,704.84,703.45,1.063392]
[1735673710619,1.48265443,704.84,703.47,0.28430494]
[1735673711317,0.26113863,704.83,703.47,0.28430494]
[1735673711621,1.48265443,704.84,703.47,0.28430494]
[1735673714018,1.06274161,705.07,703.47,0.28430494]
[1735673714221,1.48243338,704.93,703.47,0.28430494]
[1735673714422,0.26111876,704.92,703.47,0.28430494]
[1735673714622,0.26112178,704.91,703.47,0.28430494]
[1735673714823,1.48240707,704.93,703.47,0.28430494]
[1735673715024,0.26111597,704.92,703.47,0.28430494]
[1735673716825,1.48240707,704.93,703.47,0.28430494]
[1735673717826,0.26114085,704.92,703.47,0.28430494]
[1735673718320,1.48240707,704.93,703.47,0.28430494]
[1735673718621,0.26114467,704.92,703.47,0.28430494]
[1735673719727,0.26115465,704.91,703.47,0.28430494]
[1735673719923,0.26115465,704.9,703.47,0.28430494]
[1735673720123,0.26115465,704.89,703.47,0.28430494]
[1735673720323,0.26115465,704.88,703.47,0.28430494]
[1735673720526,0.26116144,704.87,703.47,0.28430494]
[1735673720720,0.26116144,704.86,703.47,0.28430494]
[1735673721026,0.26116144,704.85,703.47,0.28430494]
[1735673721227,1.48240707,704.93,703.47,0.28430494]
[1735673721428,0.2611567,704.92,703.47,0.28430494]
[1735673722421,0.26115585,704.91,703.47,0.28430494]
[1735673722728,0.26115585,704.9,703.47,0.28430494]
[1735673722925,0.26115585,704.89,703.47,0.28430494]
[1735673723224,0.26115585,704.88,703.47,0.28430494]
[1735673723421,1.46738457,704.93,703.47,0.28430494]
[1735673723422,0.26115585,704.87,703.47,0.28430494]
[1735673723729,0.26115585,704.86,703.47,0.28430494]
[1735673724026,0.26115585,704.85,703.47,0.28430494]
[1735673724227,0.26115585,704.84,703.47,0.28430494]
[1735673724526,0.26115585,704.83,703.47,0.28430494]
[1735673724726,0.26115585,704.82,703.47,0.28430494]
[1735673724922,0.26115585,704.81,703.47,0.28430494]
[1735673727529,0.2611705,704.8,703.47,0.28430494]
[1735673727727,1.48260706,704.82,703.47,0.28430494]
[1735673727728,0.2611705,704.79,703.47,0.28430494]
[1735673727927,0.2611705,704.78,703.47,0.28430494]
[1735673728228,0.2611705,704.77,703.47,0.28430494]
[1735673728429,0.2611705,704.76,703.47,0.28430494]
[1735673728628,1.48260706,704.82,703.47,0.28430494]
[1735673729529,0.26115984,704.81,703.47,0.28430494]
[1735673730330,0.26116846,704.8,703.47,0.28430494]
[1735673730631,0.26116846,704.79,703.47,0.28430494]
[1735673730830,0.26116846,704.78,703.47,0.28430494]
[1735673731032,0.26116846,704.77,703.47,0.28430494]
[1735673731227,0.26116846,704.76,703.47,0.28430494]
[1735673731531,1.48260706,704.82,703.47,0.28430494]
[1735673731532,0.26116846,704.75,703.47,0.28430494]
[1735673731830,0.26116846,704.74,703.47,0.28430494]
[1735673732030,0.26116846,704.73,703.47,0.28430494]
[1735673732228,0.26116846,704.72,703.47,0.28430494]
[1735673732424,1.48260706,704.82,703.47,0.28430494]
[1735673732733,0.26119548,704.81,703.47,0.28430494]
[1735673734732,1.06274161,704.78,703.47,0.28430494]
[1735673734934,0.26119548,704.77,703.47,0.28430494]
[1735673736231,1.06274161,704.78,703.47,0.28430494]
[1735673736232,0.26119805,704.76,703.47,0.28430494]
[1735673736432,0.26119805,704.75,703.47,0.28430494]
[1735673736631,0.26119805,704.74,703.47,0.28430494]
[1735673736834,1.06274161,704.78,703.47,0.28430494]
[1735673737033,1.48279131,704.73,703.47,0.28430494]
[1735673738536,0.26119297,704.72,703.47,0.28430494]
[1735673739334,1.48279131,704.73,703.47,0.28430494]
[1735673739535,1.48279131,704.73,703.32,1.063392]
[1735673739536,0.26121382,704.72,703.32,1.063392]
[1735673739739,0.28380871,704.7,703.4,1.063392]
[1735673739934,0.26121382,704.69,703.4,1.063392]
[1735673740235,0.28382079,704.67,703.4,1.063392]
[1735673740431,0.26121382,704.66,703.4,1.063392]
[1735673740636,0.26121382,704.65,703.4,1.063392]
[1735673740836,0.54538071,704.64,703.4,1.063392]
[1735673741039,1.06274161,704.2,701.99,1.063392]
[1735673741233,0.26154784,704.19,702.1,0.2848597]
[1735673741432,0.54556209,704.19,702.1,0.2848597]
[1735673741636,0.26154784,704.18,702.1,0.2848597]
[1735673741834,0.28402232,704.17,702.1,0.2848597]
[1735673742136,0.26154784,704.16,702.1,0.2848597]
[1735673742540,0.28403039,704.15,702.1,0.2848597]
[1735673742838,0.26154784,704.14,702.1,0.2848597]
[1735673743037,0.28403845,704.13,702.1,0.2848597]
[1735673743239,0.26154784,704.12,702.1,0.2848597]
[1735673743436,0.28404652,704.11,702.1,0.2848597]
[1735673743642,0.26154784,704.1,702.1,0.2848597]
[1735673743936,0.28405459,704.09,702.1,0.2848597]
[1735673744640,0.26149395,704.08,702.1,0.2848597]
[1735673746339,0.28405459,704.09,702.1,0.2848597]
[1735673746340,0.26150164,704.07,702.1,0.2848597]
[1735673746540,0.26150164,704.06,702.1,0.2848597]
[1735673746738,0.28405459,704.09,702.1,0.2848597]
[1735673746739,0.26150164,704.05,702.1,0.2848597]
[1735673746939,0.26150164,704.04,702.1,0.2848597]
[1735673747240,0.26150164,704.03,702.1,0.2848597]
[1735673747441,0.26150164,704.02,702.1,0.2848597]
[1735673748942,0.26150233,704.01,702.1,0.2848597]
[1735673749143,0.26150233,704.0,702.1,0.2848597]
[1735673749337,0.26150233,703.99,702.1,0.2848597]
[1735673749541,0.26150233,703.98,702.1,0.2848597]
[1735673749742,0.26150233,703.97,702.1,0.2848597]
[1735673749945,0.26150233,703.96,702.1,0.2848597]
[1735673750241,0.26150233,703.95,702.1,0.2848597]
[1735673750441,0.26150233,703.94,702.1,0.2848597]
[1735673750642,0.26150233,704.02,702.1,0.2848597]
[1735673750945,0.26150233,704.01,702.1,0.2848597]
[1735673751144,0.26150233,704.0,702.1,0.2848597]
[1735673751341,0.26150233,703.99,702.1,0.2848597]
[1735673751645,0.26150233,703.98,702.1,0.2848597]
[1735673751845,0.26150233,703.97,702.1,0.2848597]
[1735673752137,1.48496896,704.03,702.1,0.2848597]
[1735673752349,0.26150426,704.02,702.1,0.2848597]
[1735673753141,1.48496896,704.03,702.1,0.2848597]
[1735673753344,0.26150728,704.02,702.1,0.2848597]
[1735673756942,0.26150544,704.01,702.1,0.2848597]
[1735673757147,0.26150544,704.0,702.1,0.2848597]
[1735673757447,0.26150544,703.99,702.1,0.2848597]
[1735673757644,0.26150544,703.98,702.1,0.2848597]
[1735673757841,0.26150544,703.97,702.1,0.2848597]
[1735673758047,1.48496896,704.03,702.1,0.2848597]
[1735673758048,0.26150544,703.96,702.1,0.2848597]
[1735673758246,0.26150544,703.95,702.1,0.2848597]
[1735673758442,0.26150544,703.94,702.1,0.2848597]
[1735673758646,0.26150544,703.93,702.1,0.2848597]
[1735673759547,0.26149999,703.92,702.1,0.2848597]
[1735673759741,0.26149999,703.91,702.1,0.2848597]
[1735673759947,0.26149999,703.9,702.1,0.2848597]
[1735673760249,1.48509042,703.94,702.1,0.2848597]
[1735673760250,0.26149999,703.89,702.1,0.2848597]
[1735673760544,0.26149999,703.88,702.1,0.2848597]
[1735673760848,1.48509042,703.94,702.1,0.2848597]
[1735673761144,0.26152423,703.93,702.1,0.2848597]
[1735673765853,0.26152423,703.92,702.1,0.2848597]
[1735673766053,1.48509042,703.94,702.1,0.2848597]
[1735673766054,0.26152423,703.91,702.1,0.2848597]
[1735673766253,0.26152423,703.9,702.1,0.2848597]
[1735673766447,1.48509042,703.94,702.1,0.2848597]
[1735673766647,0.26158177,703.93,702.1,0.2848597]
[1735673766853,0.26158177,703.92,702.1,0.2848597]
[1735673767052,0.26158177,703.91,702.1,0.2848597]
[1735673767252,1.48509042,703.94,702.1,0.2848597]
[1735673767448,0.26158345,703.93,702.1,0.2848597]
[1735673767653,0.26158345,703.92,702.1,0.2848597]
[1735673767846,0.26158345,703.91,702.1,0.2848597]
[1735673768052,0.26158345,703.9,702.1,0.2848597]
[1735673768252,0.26158345,703.89,702.1,0.2848597]
[1735673768451,0.26158345,703.88,702.1,0.2848597]
[1735673768652,0.26158345,703.87,702.1,0.2848597]
[1735673768853,0.26158345,703.86,702.1,0.2848597]
[1735673769056,0.26158345,703.85,702.1,0.2848597]
[1735673769253,0.26158887,703.84,702.1,0.2848597]
[1735673771350,0.26157965,703.83,702.1,0.2848597]
[1735673771557,0.26157965,703.82,702.1,0.2848597]
[1735673771758,0.26157965,703.84,702.1,0.2848597]
[1735673771957,1.48532812,703.85,702.1,0.2848597]
[1735673771958,0.26157983,703.83,702.1,0.2848597]
[1735673772258,0.26157983,703.82,702.1,0.2848597]
[1735673772452,0.26157983,703.81,702.1,0.2848597]
[1735673772762,0.26157983,703.8,702.1,0.2848597]
[1735673772956,0.26157983,703.79,702.1,0.2848597]
[1735673773153,0.26157983,703.78,702.1,0.2848597]
[1735673773352,0.26157983,703.77,702.1,0.2848597]
[1735673773653,0.26157983,703.76,702.1,0.2848597]
[1735673773858,0.26157983,703.75,702.1,0.2848597]
[1735673774057,0.26157983,703.74,702.1,0.2848597]
[1735673774256,1.06274161,703.7,702.1,0.2848597]
[1735673774456,0.26157345,703.69,702.1,0.2848597]
[1735673774954,1.32431506,703.69,702.1,0.2848597]
[1735673775153,1.06274161,703.69,702.1,0.2848597]
[1735673775459,0.26157015,703.68,702.1,0.2848597]
[1735673776159,0.26157015,703.67,702.1,0.2848597]
[1735673776357,0.26157015,703.66,702.1,0.2848597]
[1735673776559,0.26157015,703.65,702.1,0.2848597]
[1735673776854,0.26157015,703.64,702.1,0.2848597]
[1735673777059,0.26157015,703.63,702.1,0.2848597]
[1735673777259,0.26157944,703.62,702.1,0.2848597]
[1735673777459,0.26157944,703.61,702.1,0.2848597]
[1735673777758,0.26157944,703.6,702.1,0.2848597]
[1735673777955,0.26157944,703.59,702.1,0.2848597]
[1735673778159,0.26157944,703.58,702.1,0.2848597]
[1735673778359,0.26157944,703.57,702.1,0.2848597]
[1735673778555,1.06274161,703.71,702.1,0.2848597]
[1735673778861,0.26158766,703.7,702.1,0.2848597]
[1735673779360,1.32432927,703.7,702.1,0.2848597]
[1735673779560,1.74674674,703.69,702.1,0.2848597]
[1735673779755,0.26161966,703.68,702.1,0.2848597]
[1735673783056,1.48515908,703.69,702.1,0.2848597]
[1735673783256,0.26164444,703.68,702.1,0.2848597]
[1735673784162,0.26164444,703.67,702.1,0.2848597]
[1735673784458,0.26164444,703.66,702.1,0.2848597]
[1735673784663,0.26164444,703.65,702.1,0.2848597]
[1735673784859,0.26164444,703.64,702.1,0.2848597]
[1735673785058,0.26164444,703.63,702.1,0.2848597]
[1735673785264,0.26164444,703.62,702.1,0.2848597]
[1735673785463,1.06274161,703.45,702.1,0.2848597]
[1735673785758,0.26164444,703.44,702.1,0.2848597]
[1735673785966,0.26164444,703.43,702.1,0.2848597]
[1735673786265,0.26164444,703.42,702.1,0.2848597]
[1735673786465,0.26164444,703.41,702.1,0.2848597]
[1735673786767,0.26164444,703.4,702.1,0.2848597]
[1735673787063,0.26164444,703.39,702.1,0.2848597]
[1735673787365,0.26164444,703.38,702.1,0.2848597]
[1735673787765,0.26164444,703.37,702.1,0.2848597]
[1735673787965,0.26164444,703.36,702.1,0.2848597]
[1735673788164,0.26164444,703.35,702.1,0.2848597]
[1735673788365,0.26164444,703.34,702.1,0.2848597]
[1735673788665,0.26164444,703.33,702.1,0.2848597]
[1735673788866,0.26164444,703.32,702.1,0.2848597]
[1735673789065,0.26164444,703.31,702.1,0.2848597]
[1735673789262,0.26164444,703.3,702.1,0.2848597]
[1735673789459,0.26164444,703.29,702.1,0.2848597]